bitfinex/quotes_ETHUSD_20250213
["timestamp","ask_amount","ask_price","bid_price","bid_amount"]
[1739436969263,3.74953,2667.0,2666.6,3.75002]
[1739436969264,0.015,2667.0,2666.6,3.75002]
[1739436970196,0.015,2667.0,2666.8,7.37058433]
[1739436970381,5.29,2667.3,2666.9,3.74958]
[1739436970691,5.29,2667.3,2667.1,7.37017433]
[1739436971197,5.305,2667.3,2667.2,3.74925]
[1739436971363,0.015,2667.2,2667.1,7.37017433]
[1739436971973,0.565,2667.5,2667.4,3.74888]
[1739436972299,5.29,2668.1,2667.6,3.7486]
[1739436972465,0.291,2667.6,2667.5,3.74882]
[1739436972669,0.306,2667.6,2667.5,3.74882]
[1739436973055,0.291,2667.6,2667.5,3.74882]
[1739436973262,0.291,2667.6,2667.5,4.580957]
[1739436973667,0.015,2668.0,2667.8,3.74835]
[1739436973885,0.015,2668.0,2667.9,3.62081433]
[1739436974083,0.306,2668.0,2667.9,3.62081433]
[1739436977028,4.60412,2668.0,2667.6,3.62081433]
[1739436977170,0.015,2667.8,2667.6,3.62081433]
[1739436977367,0.015,2667.8,2667.6,7.36949433]
[1739436977871,4.015,2667.8,2667.7,3.74854]
[1739436979313,4.015,2667.8,2667.6,3.62081433]
[1739436979671,0.015,2667.6,2667.3,3.62081433]
[1739436979874,0.015,2667.6,2667.4,3.74896]
[1739436980174,0.015,2667.6,2667.5,3.74882]
[1739436980376,0.015,2667.7,2667.6,3.74863]
[1739436980714,0.306,2667.7,2667.6,8.12404433]
[1739436980915,0.306,2667.7,2667.6,3.62081433]
[1739436981072,4.05454,2667.7,2667.6,3.62081433]
[1739436981409,4.05454,2667.7,2667.3,3.62081433]
[1739436981784,0.015,2667.5,2667.3,3.62081433]
[1739436982176,0.565,2667.4,2667.0,7.37024433]
[1739436982372,4.31387,2667.5,2667.0,7.37024433]
[1739436982581,0.565,2667.5,2667.0,3.62081433]
[1739436982782,0.565,2667.5,2667.1,3.74926]
[1739436983000,0.565,2667.5,2667.2,3.74924]
[1739436983486,0.565,2667.5,2667.1,7.49855]
[1739436983688,0.565,2667.5,2667.2,3.74917]
[1739436984009,0.565,2667.5,2667.2,3.74915]
[1739436985012,0.565,2667.5,2667.1,3.74926]
[1739436985823,0.565,2667.5,2667.2,3.7492]
[1739436986011,0.291,2667.4,2667.3,7.36990433]
[1739436987354,0.291,2667.4,2667.3,3.62081433]
[1739436989071,0.291,2667.4,2667.3,7.36991433]
[1739436991377,0.291,2667.4,2667.3,7.12640812]
[1739436993333,0.291,2667.4,2667.3,7.67289258]
[1739436993544,2.02975077,2668.2,2667.5,3.7488]
[1739436993747,2.02975077,2668.2,2668.1,3.62081433]
[1739436993975,2.88575077,2668.2,2668.1,3.62081433]
[1739436995257,2.59475077,2668.2,2668.1,3.62081433]
[1739436995484,2.04475077,2668.2,2668.1,3.62081433]
[1739436995692,2.04475077,2668.2,2668.1,7.36879433]
[1739436995693,2.33575077,2668.2,2668.1,7.36879433]
[1739436996187,2.04475077,2668.2,2668.1,3.62081433]
[1739436997293,2.04475077,2668.2,2668.1,7.36879433]
[1739436998350,0.015,2668.2,2668.1,7.36879433]
[1739436998799,0.291,2668.3,2668.2,3.74784]
[1739436999161,0.306,2668.3,2668.2,3.74784]
[1739436999369,0.015,2668.3,2668.2,3.74784]
[1739437000515,5.581,2668.5,2668.4,3.74756]
[1739437000704,5.305,2668.5,2668.4,7.36837433]
[1739437001309,5.305,2668.5,2668.4,3.62081433]
[1739437005227,5.305,2668.5,2668.4,7.36837433]
[1739437005429,0.015,2668.5,2668.4,7.36837433]
[1739437005610,5.944,2668.9,2668.8,3.747]
[1739437005805,5.959,2668.9,2668.8,7.36781433]
[1739437006005,6.25,2668.9,2668.8,3.62081433]
[1739437006206,0.565,2668.8,2668.5,3.62081433]
[1739437006532,0.565,2668.8,2668.7,3.74714]
[1739437006828,0.306,2668.8,2668.7,3.74714]
[1739437009006,0.306,2668.8,2668.6,3.74719]
[1739437009211,0.856,2668.8,2668.5,7.36818433]
[1739437009628,0.856,2668.8,2668.6,3.74726]
[1739437009973,0.306,2668.8,2668.7,3.74714]
[1739437010885,6.235,2668.9,2668.8,3.747]
[1739437011102,6.235,2668.9,2668.8,7.36781433]
[1739437011374,6.25,2668.9,2668.8,7.36781433]
[1739437011531,0.291,2668.9,2668.8,7.11781433]
[1739437011735,0.291,2668.9,2668.8,9.01620976]
[1739437014002,0.291,2668.9,2668.8,5.39539543]
[1739437014202,0.291,2668.9,2668.8,4.3089]
[1739437014764,0.291,2668.9,2668.8,3.497]
[1739437015796,0.291,2669.2,2669.1,3.74648]
[1739437016001,0.291,2669.2,2669.1,11.11377433]
[1739437016203,0.291,2669.2,2669.1,7.36729433]
[1739437018976,0.291,2669.3,2669.2,3.74644]
[1739437019302,0.015,2669.4,2669.3,3.74619]
[1739437019472,0.306,2669.4,2669.3,3.74619]
[1739437019869,0.015,2669.4,2669.3,3.74619]
[1739437020084,0.306,2669.4,2669.3,3.74619]
[1739437020683,0.306,2669.4,2669.1,3.62081433]
[1739437021308,0.306,2669.4,2669.1,7.36738433]
[1739437022383,0.55,2669.3,2669.1,3.62081433]
[1739437022711,0.55,2669.1,2668.8,7.36770433]
[1739437022908,0.015,2669.2,2669.0,3.7467]
[1739437023203,0.015,2669.2,2669.1,7.36739433]
[1739437024413,0.015,2669.2,2668.5,4.51788]
[1739437024632,0.015,2668.5,2668.2,3.62081433]
[1739437024965,0.015,2668.3,2667.9,3.74819]
[1739437025119,0.015,2668.3,2667.9,3.74816]
[1739437025297,0.015,2668.3,2668.0,3.62081433]
[1739437025611,0.015,2668.3,2668.1,3.74788]
[1739437025811,0.015,2668.3,2668.1,7.49578]
[1739437026302,0.015,2668.3,2668.2,3.74784]
[1739437027393,0.291,2668.6,2668.2,1.90815343]
[1739437027588,0.291,2668.6,2668.5,7.36823433]
[1739437028411,0.306,2668.6,2668.5,7.36823433]
[1739437028722,0.306,2668.6,2668.5,3.62081433]
[1739437029299,0.306,2668.6,2668.5,7.36823433]
[1739437029492,0.291,2668.6,2668.5,8.47981176]
[1739437030187,0.291,2668.6,2668.5,9.30231176]
[1739437031984,0.306,2668.6,2668.5,3.62081433]
[1739437032212,0.015,2668.5,2668.2,8.17555433]
[1739437032443,0.015,2668.5,2668.3,3.74761]
[1739437032622,0.015,2668.5,2668.4,3.74756]
[1739437034223,0.015,2668.5,2668.3,3.78516273]
[1739437034224,0.015,2668.5,2668.3,3.74769]
[1739437034598,0.015,2668.5,2668.3,7.49532]
[1739437034798,0.015,2668.5,2668.4,3.74756]
[1739437034997,0.015,2668.5,2668.3,3.74763]
[1739437035220,0.565,2668.5,2668.2,7.36863433]
[1739437036158,4.31254,2668.5,2667.9,8.16808433]
[1739437036354,0.565,2668.3,2667.9,3.62081433]
[1739437036715,0.565,2668.3,2667.9,7.36906433]
[1739437037336,3.74772,2668.3,2667.9,3.62081433]
[1739437038631,0.565,2668.4,2667.9,3.62081433]
[1739437038832,4.31256,2668.4,2667.9,7.36904433]
[1739437039040,0.565,2668.4,2667.9,7.36898433]
[1739437039247,0.015,2668.4,2668.2,3.62081433]
[1739437039424,0.291,2668.3,2668.2,3.62081433]
[1739437039766,0.306,2668.3,2668.2,3.62081433]
[1739437040819,4.306,2668.3,2668.2,3.62081433]
[1739437042243,4.306,2668.3,2668.0,3.74805]
[1739437042448,4.306,2668.3,2667.6,0.7889]
[1739437042449,4.291,2668.3,2668.2,3.62081433]
[1739437043156,4.306,2668.3,2668.2,3.62081433]
[1739437043458,4.306,2668.3,2668.2,7.36865433]
[1739437043877,4.306,2668.3,2668.2,3.62081433]
[1739437044460,4.306,2668.3,2668.2,7.36865433]
[1739437044679,4.0,2668.3,2668.2,7.36865433]
[1739437045238,4.0,2668.3,2668.2,8.55668076]
[1739437045439,4.0,2668.3,2668.2,9.33228076]
[1739437046675,0.291,2668.6,2668.2,5.58444076]
[1739437046879,0.291,2668.6,2668.5,7.36823433]
[1739437047068,4.291,2668.6,2668.5,7.36823433]
[1739437048155,0.291,2668.6,2668.5,7.36823433]
[1739437048451,0.306,2668.6,2668.5,7.36823433]
[1739437049647,0.291,2668.6,2668.5,7.36823433]
[1739437050049,0.291,2668.6,2668.5,8.38162997]
[1739437050283,0.306,2668.6,2668.5,7.36823433]
[1739437050585,0.306,2668.6,2668.5,3.62081433]
[1739437050798,0.565,2668.5,2668.2,3.62081433]
[1739437050948,0.565,2668.5,2668.4,3.74756]
[1739437051147,0.565,2668.5,2668.2,3.62081433]
[1739437051148,0.565,2668.5,2668.3,3.7477]
[1739437052594,0.565,2668.5,2668.3,3.74763]
[1739437053991,0.565,2668.5,2668.3,3.74762975]
[1739437054889,0.565,2668.5,2668.2,7.36864433]
[1739437055129,0.015,2668.3,2668.2,3.62081433]
[1739437055487,0.015,2668.3,2668.1,3.7479]
[1739437056332,4.565,2668.3,2668.1,3.7479]
[1739437056508,4.565,2668.3,2667.9,3.62081433]
[1739437056710,8.3127,2668.3,2667.9,3.62081433]
[1739437057115,4.3127,2668.3,2667.9,3.62081433]
[1739437057928,0.565,2668.3,2667.9,3.62081433]
[1739437058095,0.565,2668.3,2667.9,7.36903433]
[1739437058290,0.565,2668.3,2667.7,3.74846]
[1739437058495,0.565,2668.1,2667.7,3.74846]
[1739437058930,3.74814,2668.0,2667.6,3.62081433]
[1739437059091,0.015,2668.0,2667.6,7.36949433]
[1739437059501,0.015,2668.0,2667.6,11.11810433]
[1739437059809,0.565,2668.2,2667.7,3.74847]
[1739437059993,4.31296,2668.2,2667.7,3.74847]
[1739437060199,0.015,2667.8,2667.7,3.74847]
[1739437061596,4.0,2667.9,2667.7,3.74847]
[1739437061803,4.0,2667.9,2667.8,3.7484]
[1739437063069,4.015,2667.9,2667.8,3.7484]
[1739437064139,4.0,2667.9,2667.8,3.7484]
[1739437064343,4.0,2667.9,2667.8,5.70242843]
[1739437065228,4.0,2667.9,2667.8,8.70242843]
[1739437065427,0.291,2668.5,2667.9,3.0]
[1739437065631,0.291,2668.5,2668.4,7.36837433]
[1739437065930,0.015,2668.4,2668.1,7.36868433]
[1739437067469,0.015,2668.4,2668.1,3.62081433]
[1739437067834,0.015,2668.4,2668.2,3.74782]
[1739437069030,0.015,2668.4,2668.3,3.7477]
[1739437069592,0.291,2668.4,2668.3,3.74768]
[1739437072195,0.015,2668.3,2668.2,3.74782]
[1739437072394,0.015,2668.3,2668.1,3.62081433]
[1739437073727,0.015,2668.3,2668.1,7.36877433]
[1739437074503,0.015,2668.3,2668.1,3.62081433]
[1739437075239,4.31281,2668.3,2667.8,7.36911433]
[1739437075758,0.015,2668.3,2668.2,3.74784]
[1739437076941,5.29,2668.6,2668.5,3.74742]
[1739437077113,0.306,2668.6,2668.5,7.36823433]
[1739437078942,0.306,2668.6,2668.5,3.62081433]
[1739437079245,0.856,2668.6,2668.3,3.74763]
[1739437080228,0.856,2668.6,2668.4,3.74743]
[1739437080425,0.856,2668.6,2668.2,7.36856433]
[1739437080629,0.856,2668.6,2668.2,11.11629433]
[1739437081131,4.60329,2668.6,2668.2,7.36854433]
[1739437081345,0.565,2668.5,2668.2,7.36854433]
[1739437081654,0.565,2668.5,2668.3,3.74769]
[1739437082159,0.565,2668.5,2668.2,7.36863433]
[1739437082534,0.565,2668.5,2668.3,3.74763]
[1739437082944,0.565,2668.5,2668.4,3.74756]
[1739437083143,0.015,2668.5,2668.4,3.74756]
[1739437083459,0.015,2668.5,2668.3,3.74769]
[1739437083685,0.015,2668.5,2668.2,7.36864433]
[1739437084434,0.565,2668.5,2668.2,3.62081433]
[1739437084663,4.31243,2668.5,2668.2,3.62081433]
[1739437085715,0.565,2668.3,2667.9,7.36897433]
[1739437085867,5.855,2668.3,2667.9,7.36897433]
[1739437086062,9.6027,2668.3,2667.9,3.62081433]
[1739437086860,5.855,2668.3,2667.9,7.36896433]
[1739437087268,9.60271,2668.3,2667.9,3.62081433]
[1739437087777,5.855,2668.3,2667.9,7.36903433]
[1739437088100,5.855,2668.3,2667.9,3.62081433]
[1739437088101,9.60272,2668.3,2667.9,3.62081433]
[1739437088424,0.565,2668.1,2667.6,7.36940433]
[1739437088764,4.31298,2668.1,2667.6,11.11798433]
[1739437088985,4.31298,2668.1,2667.6,7.36939433]
[1739437089189,4.31298,2668.1,2667.6,3.62081433]
[1739437089397,4.31299,2668.1,2667.6,7.36943433]
[1739437089876,4.31299,2668.1,2667.6,7.36941433]
[1739437091511,4.31299,2668.1,2667.6,11.11803433]
[1739437091675,4.31299,2668.1,2667.6,7.36941433]
[1739437091879,8.06108,2668.1,2667.6,7.36941433]
[1739437092125,5.855,2668.1,2667.4,0.8028]
[1739437092323,3.76374,2667.6,2667.3,3.62081433]
[1739437092614,0.015,2667.4,2667.3,3.62081433]
[1739437092836,3.76396,2667.4,2667.3,3.62081433]
[1739437093337,0.015,2667.4,2667.3,3.62081433]
[1739437094139,0.015,2667.4,2667.0,7.37025433]
[1739437094315,0.015,2667.4,2667.0,3.62081433]
[1739437094516,0.015,2667.4,2667.2,3.7492]
[1739437094702,0.291,2667.5,2667.4,3.74896]
[1739437095101,0.306,2667.5,2667.4,3.74896]
[1739437095311,5.581,2667.6,2667.5,3.74882]
[1739437095544,5.581,2667.6,2667.3,3.62081433]
[1739437095746,0.565,2667.5,2667.3,7.36984433]
[1739437096040,0.015,2667.5,2667.3,7.36984433]
[1739437096215,0.015,2667.5,2667.3,3.62081433]
[1739437096611,0.565,2667.5,2667.0,4.40941433]
[1739437096815,0.015,2667.4,2667.0,7.37026433]
[1739437097817,0.015,2667.4,2667.0,7.37031433]
[1739437098623,0.015,2667.4,2667.2,3.74917]
[1739437098824,0.015,2667.4,2667.3,7.36991433]
[1739437099026,0.291,2667.4,2667.3,8.12011433]
[1739437099231,0.306,2667.4,2667.3,8.12011433]
[1739437099703,0.306,2667.4,2667.3,4.37101433]
[1739437100390,0.306,2667.4,2667.3,3.62081433]
[1739437101278,0.306,2667.4,2667.3,7.36991433]
[1739437101848,0.291,2667.4,2667.3,7.36991433]
[1739437102543,0.306,2667.4,2667.3,7.36991433]
[1739437103269,0.306,2667.4,2667.3,3.62081433]
[1739437103602,0.856,2667.4,2667.3,3.62081433]
[1739437103810,4.60496,2667.4,2667.0,3.62081433]
[1739437104103,0.856,2667.4,2667.0,3.62081433]
[1739437104270,4.60499,2667.4,2667.0,3.62081433]
[1739437105333,0.565,2667.3,2667.0,3.62081433]
[1739437105606,0.565,2667.3,2666.7,3.74986]
[1739437105607,0.015,2667.0,2666.7,3.62081433]
[1739437106166,4.31463,2667.0,2666.7,3.62081433]
[1739437107567,0.565,2667.0,2666.7,7.37075433]
[1739437107767,0.565,2667.0,2666.7,3.62081433]
[1739437108197,0.015,2667.0,2666.7,7.37068433]
[1739437108890,0.015,2667.0,2666.5,0.754]
[1739437109106,0.015,2666.8,2666.4,3.62081433]
[1739437109292,0.015,2666.6,2666.4,3.62081433]
[1739437109600,0.015,2666.6,2666.4,7.37117433]
[1739437109807,0.55,2666.9,2666.4,7.37117433]
[1739437109808,0.015,2666.8,2666.4,7.37117433]
[1739437110008,0.015,2666.8,2666.5,3.75016]
[1739437110168,0.015,2666.8,2666.4,3.62081433]
[1739437110374,5.29,2667.0,2666.7,3.62081433]
[1739437110572,0.015,2666.9,2666.7,3.62081433]
[1739437110820,0.306,2666.9,2666.7,3.62081433]
[1739437111283,0.306,2666.9,2666.7,7.37069433]
[1739437111816,0.291,2666.9,2666.7,3.62081433]
[1739437111993,0.291,2666.9,2666.7,7.37072433]
[1739437112194,0.291,2666.9,2666.7,3.62081433]
[1739437112993,0.291,2666.9,2666.8,3.74981]
[1739437113190,0.015,2667.1,2666.9,4.55927]
[1739437113500,0.291,2667.1,2667.0,7.37034433]
[1739437113835,0.306,2667.1,2667.0,3.62081433]
[1739437116412,0.306,2667.1,2667.0,7.37034433]
[1739437116617,0.306,2667.1,2667.0,3.62081433]
[1739437120965,0.306,2667.1,2667.0,7.37034433]
[1739437121135,4.306,2667.1,2667.0,3.62081433]
[1739437122126,4.306,2667.1,2667.0,7.37034433]
[1739437122322,4.015,2667.1,2667.0,7.37034433]
[1739437122651,4.015,2667.1,2667.0,8.19704433]
[1739437122968,4.0,2667.1,2667.0,9.01601465]
[1739437123353,0.291,2667.4,2667.3,3.7491]
[1739437123553,4.291,2667.4,2667.3,7.36991433]
[1739437123903,0.291,2667.4,2667.3,8.20181433]
[1739437124302,0.015,2667.7,2667.3,8.20181433]
[1739437124303,0.015,2667.7,2667.6,3.74868]
[1739437124591,0.306,2667.7,2667.6,7.36949433]
[1739437125375,0.39177821,2667.9,2667.6,5.56454576]
[1739437125586,0.40677821,2667.9,2667.8,3.7484]
[1739437125796,0.015,2667.9,2667.8,3.7484]
[1739437126767,4.015,2667.9,2667.6,4.45271433]
[1739437126981,4.015,2667.9,2667.6,8.20139433]
[1739437128604,4.015,2667.9,2667.7,3.74847]
[1739437128797,4.015,2667.9,2667.6,8.20139433]
[1739437128997,0.015,2667.8,2667.6,3.62081433]
[1739437129593,0.015,2667.8,2667.6,7.36941433]
[1739437130091,0.015,2667.8,2667.6,3.62081433]
[1739437130432,0.015,2667.8,2667.6,7.36942433]
[1739437130764,0.015,2667.8,2667.7,3.74854]
[1739437136225,0.015,2667.9,2667.7,3.74841]
[1739437136420,0.015,2667.9,2667.6,7.36942433]
[1739437136626,0.015,2667.9,2667.7,3.74847]
[1739437136822,0.015,2667.9,2667.6,7.36946433]
[1739437137216,0.015,2667.9,2667.7,3.74846]
[1739437137418,0.015,2667.9,2667.8,3.7484]
[1739437137813,5.29,2668.3,2667.9,0.8098]
[1739437138124,5.29,2668.5,2668.2,7.36859433]
[1739437138285,0.305,2668.4,2668.2,3.62081433]
[1739437138925,0.305,2668.4,2668.2,7.36864433]
[1739437139112,0.015,2668.4,2668.3,3.7477]
[1739437139428,0.305,2668.4,2668.3,3.7477]
[1739437140599,0.305,2668.4,2668.2,3.62081433]
[1739437141295,0.305,2668.4,2668.2,7.36861433]
[1739437141985,0.305,2668.4,2668.3,3.7477]
[1739437142428,0.305,2668.4,2668.2,7.36861433]
[1739437142831,0.305,2668.4,2668.3,3.7477]
[1739437143122,0.305,2668.4,2668.3,4.5668]
[1739437143324,0.015,2668.4,2668.3,5.76034143]
[1739437144889,0.015,2668.4,2668.3,4.94124143]
[1739437145102,0.015,2668.4,2668.3,3.7477]
[1739437146727,0.015,2668.4,2668.3,3.78517288]
[1739437146892,0.015,2668.4,2668.3,3.7477]
[1739437148216,0.015,2668.4,2668.3,3.78517312]
[1739437148929,5.29,2668.7,2668.6,4.53558]
[1739437149130,0.29,2668.7,2668.6,3.62081433]
[1739437149358,0.305,2668.7,2668.6,7.36809433]
[1739437149719,0.305,2668.7,2668.6,3.62081433]
[1739437150537,4.29655,2669.2,2668.6,4.81121376]
[1739437150538,0.29,2668.8,2668.6,4.81121376]
[1739437150848,0.29,2668.9,2668.7,3.74706]
[1739437151010,0.305,2668.9,2668.8,3.62081433]
[1739437151642,0.305,2668.9,2668.8,7.36781433]
[1739437152529,0.305,2668.9,2668.8,3.62081433]
[1739437152731,0.29,2668.9,2668.8,8.92720776]
[1739437153137,2.02898611,2669.1,2669.0,3.74672]
[1739437153306,0.29,2669.3,2669.2,3.74636]
[1739437153508,0.29,2669.3,2669.2,7.36717433]
[1739437153814,0.305,2669.3,2669.2,3.62081433]
[1739437154232,0.855,2669.3,2669.2,3.62081433]
[1739437155755,0.305,2669.3,2669.2,3.62081433]
[1739437156069,0.305,2669.3,2669.2,8.10400576]
[1739437156742,0.305,2669.3,2669.2,4.35756576]
[1739437157262,0.305,2669.3,2669.2,3.62081433]
[1739437157647,0.015,2669.0,2668.9,3.62081433]
[1739437159876,0.565,2669.2,2668.9,3.62081433]
[1739437160019,0.015,2669.2,2668.9,7.36755433]
[1739437160223,0.015,2669.2,2668.9,8.18046976]
[1739437160675,9.03595,2669.6,2669.1,3.74658]
[1739437160856,0.29,2669.3,2669.2,3.62081433]
[1739437161049,0.305,2669.3,2669.2,3.62081433]
[1739437161864,0.015,2669.3,2669.2,8.16095433]
[1739437162064,0.305,2669.3,2669.2,8.16095433]
[1739437163380,0.29,2669.4,2669.3,3.7462]
[1739437163880,5.29,2670.1,2669.5,3.74601]
[1739437164077,3.74496,2670.3,2669.9,3.62081433]
[1739437164291,0.29,2670.0,2669.9,3.62081433]
[1739437164522,0.29,2670.0,2669.3,3.62081433]
[1739437164523,3.76073,2669.7,2669.3,3.62081433]
[1739437164675,0.015,2669.6,2669.3,3.62081433]
[1739437164990,0.015,2669.6,2669.3,7.36706433]
[1739437165164,0.015,2669.7,2669.4,3.74614]
[1739437165354,0.015,2669.7,2669.6,7.36668433]
[1739437165785,0.015,2669.9,2669.6,3.62081433]
[1739437165984,0.015,2669.9,2669.6,7.36660433]
[1739437166187,0.015,2669.9,2669.7,3.74567]
[1739437166388,0.015,2669.9,2669.8,3.74559]
[1739437166553,0.015,2669.9,2669.7,3.74563]
[1739437167591,0.015,2669.9,2669.6,3.62081433]
[1739437167794,3.76046,2669.9,2669.6,3.62081433]
[1739437168198,0.015,2669.9,2669.6,3.62081433]
[1739437169174,0.015,2669.9,2669.6,7.36668433]
[1739437170093,0.015,2669.9,2669.6,3.62081433]
[1739437171075,0.015,2669.9,2669.6,7.36668433]
[1739437172324,0.015,2669.9,2669.6,11.11248433]
[1739437172511,0.015,2669.9,2669.6,7.36661433]
[1739437172894,0.015,2669.9,2669.6,3.62081433]
[1739437173306,0.015,2669.9,2669.6,7.36668433]
[1739437173892,0.015,2669.9,2669.6,3.62081433]
[1739437174092,0.015,2669.7,2669.6,7.36668433]
[1739437176434,0.015,2669.7,2669.6,3.62081433]
[1739437176941,0.565,2669.7,2669.3,7.36702433]
[1739437177103,0.565,2669.7,2669.3,3.62081433]
[1739437177311,0.565,2669.7,2669.3,7.36710433]
[1739437177693,0.565,2669.5,2669.3,3.62081433]
[1739437177922,5.855,2669.5,2669.3,3.62081433]
[1739437178936,5.855,2669.5,2669.0,3.62081433]
[1739437178937,0.565,2669.3,2669.0,3.62081433]
[1739437179299,0.015,2669.3,2669.0,7.36750433]
[1739437179524,3.76131,2669.3,2669.0,3.62081433]
[1739437179727,3.74648,2669.2,2669.0,3.62081433]
[1739437179914,0.015,2669.1,2669.0,3.62081433]
[1739437181126,0.015,2669.3,2669.0,3.62081433]
[1739437181300,0.305,2669.3,2669.0,3.62081433]
[1739437181707,4.0513,2669.3,2669.0,3.62081433]
[1739437183131,0.305,2669.3,2669.0,3.62081433]
[1739437183332,4.31158,2669.1,2669.0,3.62081433]
[1739437183542,4.31158,2669.1,2668.7,7.36794433]
[1739437183836,0.015,2669.1,2668.7,7.36794433]
[1739437184040,0.015,2669.1,2668.7,3.62081433]
[1739437184346,5.29,2669.5,2669.2,3.74637]
[1739437184632,0.015,2669.4,2669.3,7.36710433]
[1739437184992,0.015,2669.4,2669.3,3.62081433]
[1739437188560,0.015,2669.4,2669.3,7.36711433]
[1739437190038,0.015,2669.4,2669.3,3.62081433]
[1739437190574,0.015,2669.4,2669.3,7.36711433]
[1739437190713,0.015,2669.4,2669.3,3.62081433]
[1739437192943,0.015,2669.4,2669.3,7.36711433]
[1739437193637,0.015,2669.4,2669.3,3.62081433]
[1739437194670,0.565,2669.4,2669.0,7.36752433]
[1739437195335,4.31116,2669.4,2669.0,7.36752433]
[1739437195934,0.015,2669.2,2669.1,3.74658]
[1739437196951,0.015,2669.2,2669.0,7.36752433]
[1739437197458,0.015,2669.2,2669.0,3.62081433]
[1739437198125,0.015,2669.2,2669.1,3.74658]
[1739437198561,0.015,2669.2,2669.0,7.36751433]
[1739437199367,0.015,2669.2,2669.1,3.74658]
[1739437199729,0.015,2669.2,2669.0,8.13871433]
[1739437199929,0.015,2669.2,2669.0,3.62081433]
[1739437200144,4.31145,2669.2,2668.8,3.74697]
[1739437200426,0.0075,2668.9,2668.7,3.62081433]
[1739437200742,0.015,2668.4,2668.0,0.7806]
[1739437200960,0.565,2668.2,2667.5,3.62081433]
[1739437201275,0.565,2668.2,2667.2,3.74924]
[1739437201276,0.015,2667.8,2667.3,3.74899]
[1739437201433,5.855,2667.8,2667.5,0.75526593]
[1739437201769,5.29,2667.8,2667.7,3.74854]
[1739437202264,5.29,2667.8,2667.7,4.53874]
[1739437202867,0.29,2668.3,2668.2,3.74784]
[1739437203021,5.29,2668.7,2668.4,3.74744]
[1739437203222,5.29,2668.7,2668.2,8.17710433]
[1739437203223,0.015,2668.4,2668.2,8.17710433]
[1739437203426,0.015,2668.4,2668.2,3.62081433]
[1739437203665,0.015,2668.4,2668.0,3.74805]
[1739437203827,0.015,2668.4,2668.0,7.49606]
[1739437204027,0.565,2668.4,2667.9,4.43081433]
[1739437204228,4.31256,2668.4,2667.9,4.43081433]
[1739437204430,0.565,2668.4,2668.1,3.74798]
[1739437205323,0.565,2668.4,2667.5,8.95015885]
[1739437205324,3.74779,2668.3,2667.7,3.74851]
[1739437205579,0.0075,2668.0,2667.6,3.62081433]
[1739437205768,0.565,2667.8,2667.4,3.74887]
[1739437205971,4.31353,2667.8,2667.3,3.62081433]
[1739437206171,0.015,2667.8,2667.3,7.36990433]
[1739437206848,0.015,2667.8,2667.4,3.74891]
[1739437207174,0.015,2667.8,2667.3,3.62081433]
[1739437207175,3.74862,2667.7,2667.3,3.62081433]
[1739437208150,0.015,2667.8,2667.3,3.62081433]
[1739437208478,0.55,2667.7,2667.3,3.62081433]
[1739437208784,0.55,2667.5,2667.1,3.7493]
[1739437208937,0.015,2667.2,2666.8,3.74973]
[1739437209135,5.305,2667.2,2666.7,7.37065433]
[1739437209333,0.015,2667.0,2666.7,3.62081433]
[1739437209637,0.015,2666.7,2666.3,3.7505]
[1739437210246,0.565,2666.7,2666.4,3.75025]
[1739437210454,0.015,2666.7,2666.2,6.75057]
[1739437210736,0.015,2666.7,2666.3,3.0]
[1739437211808,3.76525,2666.5,2665.8,7.37194433]
[1739437212082,0.015,2666.3,2665.9,6.75104]
[1739437212376,5.305,2666.3,2665.8,3.62081433]
[1739437212575,5.305,2666.3,2665.9,3.0]
[1739437212792,5.305,2666.3,2665.4,0.8046]
[1739437212793,3.7659,2666.1,2665.4,0.8046]
[1739437212969,0.015,2666.1,2665.2,7.37279433]
[1739437213195,0.015,2665.6,2665.2,3.75206]
[1739437213345,0.015,2665.6,2664.9,7.37322433]
[1739437213550,0.015,2665.3,2664.8,3.75258]
[1739437213758,0.015,2665.1,2664.7,6.7527]
[1739437213961,0.015,2665.1,2664.6,3.62081433]
[1739437214187,0.015,2665.1,2664.7,3.75275]
[1739437214572,0.015,2665.1,2664.6,3.62081433]
[1739437214758,3.7672,2665.1,2664.6,3.62081433]
[1739437214963,0.015,2665.1,2664.6,3.62081433]
[1739437215279,3.76723,2665.1,2664.5,3.75299]
[1739437215985,3.7672,2665.1,2664.5,3.75299]
[1739437216186,0.015,2664.9,2664.3,7.50651]
[1739437216360,0.015,2664.9,2664.3,3.75324]
[1739437216687,3.76749,2664.9,2664.4,3.0]
[1739437217048,0.015,2664.7,2664.1,4.53724]
[1739437217351,0.015,2664.7,2663.9,3.62081433]
[1739437217352,0.015,2664.5,2663.9,3.7538]
[1739437217688,0.015,2664.5,2663.8,0.7929]
[1739437217892,0.015,2664.7,2664.3,3.75331]
[1739437218215,0.015,2664.7,2664.1,3.75354]
[1739437218494,0.015,2664.7,2664.0,3.0]
[1739437218647,0.015,2664.5,2664.0,6.75371]
[1739437218854,0.015,2664.5,2664.1,3.75358]
[1739437219155,3.76799,2664.6,2664.0,3.0]
[1739437219356,3.76799,2664.6,2664.0,6.75371]